fUST/lending_fUST_20241012
["ID","MTS","AMOUNT","RATE_DAILY","PERIOD"]
[340144279,1728678661287,-933.99,0.00059178,120]
[340144280,1728678661296,-500.0,0.00059178,120]
[340144281,1728678661306,-804.51,0.00059178,120]
[340144282,1728678661315,-500.0,0.00059178,120]
[340144283,1728678661324,-500.0,0.00059178,120]
[340144284,1728678661333,-500.0,0.00059178,7]
[340144285,1728678661342,-536.15,0.00059178,120]
[340144286,1728678661352,-994.59,0.00059178,120]
[340144287,1728678661361,-683.35,0.00059178,30]
[340144288,1728678661373,-546.26,0.00059178,120]
[340144289,1728678661385,-500.0,0.00059178,2]
[340144290,1728678661395,-250.0,0.00059178,120]
[340144291,1728678661405,-500.0,0.00059178,120]
[340144292,1728678661415,-500.0,0.00059178,120]
[340144293,1728678661426,-1202.52,0.00059178,120]
[340144294,1728678661440,-1411.19,0.00059178,120]
[340144295,1728678661453,-1442.14,0.00059178,120]
[340144296,1728678661463,-632.2,0.00059178,120]
[340144297,1728678661473,-561.03,0.00059178,120]
[340144298,1728678661485,-526.01,0.00059178,120]
[340144299,1728678661495,-500.0,0.00059178,120]
[340144300,1728678661506,-1351.2,0.00059178,120]
[340144301,1728678661517,-3425.5,0.00059178,120]
[340144302,1728678661527,-2791.64,0.00059178,120]
[340144303,1728678661538,-690.98,0.00059178,120]
[340144304,1728678661548,-521.14,0.00059178,120]
[340144305,1728678661558,-613.21,0.00059178,120]
[340144306,1728678661569,-500.0,0.00059178,120]
[340144307,1728678661578,-785.83,0.00059178,120]
[340144308,1728678661590,-621.34,0.00059178,120]
[340144309,1728678661600,-500.0,0.00059178,120]
[340144310,1728678661612,-638.04,0.00059178,120]
[340144311,1728678661622,-574.52,0.00059178,120]
[340144312,1728678661633,-709.73,0.00059178,120]
[340144313,1728678661644,-500.0,0.00059178,120]
[340144314,1728678661654,-500.0,0.00059178,120]
[340144315,1728678661663,-6494.28,0.00059178,120]
[340144316,1728678661674,-623.84,0.00059178,2]
[340144317,1728678661685,-601.28,0.00059178,120]
[340144318,1728678661693,-9360.29,0.00059178,18]
[340144319,1728678661702,-250.497307,0.000592,2]
[340144320,1728678661712,-400.0,0.00059236,2]
[340144321,1728678661723,-2500.0,0.00059278,15]
[340144322,1728678661732,-1000.0,0.0005934,120]
[340144323,1728678661742,-933.99,0.00059452,120]
[340144324,1728678661821,-507.47401546,0.00059452,120]
[340144325,1728678661831,-804.51,0.00059452,120]
[340144326,1728678661841,-500.0,0.00059452,120]
[340144327,1728678661850,-500.0,0.00059452,120]
[340144328,1728678661860,-500.0,0.00059452,7]
[340144329,1728678661870,-536.15,0.00059452,120]
[340144330,1728678661880,-994.59,0.00059452,120]
[340144331,1728678661889,-683.35,0.00059452,30]
[340144332,1728678661899,-546.26,0.00059452,120]
[340144333,1728678661910,-500.0,0.00059452,2]
[340144334,1728678661921,-250.0,0.00059452,120]
[340144335,1728678661930,-500.0,0.00059452,120]
[340144336,1728678661940,-500.0,0.00059452,120]
[340144337,1728678661950,-1202.52,0.00059452,120]
[340144338,1728678661959,-1411.19,0.00059452,120]
[340144339,1728678661969,-1442.14,0.00059452,120]
[340144340,1728678661978,-632.2,0.00059452,120]
[340144341,1728678661988,-561.03,0.00059452,120]
[340144342,1728678661997,-526.01,0.00059452,120]
[340144343,1728678662007,-500.0,0.00059452,120]
[340144344,1728678662017,-1351.2,0.00059452,120]
[340144345,1728678662026,-3425.5,0.00059452,120]
[340144346,1728678662036,-2791.64,0.00059452,120]
[340144347,1728678662045,-690.98,0.00059452,120]
[340144348,1728678662055,-521.14,0.00059452,120]
[340144349,1728678662065,-613.21,0.00059452,120]
[340144350,1728678662076,-500.0,0.00059452,120]
[340144351,1728678662086,-785.83,0.00059452,120]
[340144352,1728678662096,-621.34,0.00059452,120]
[340144353,1728678662106,-500.0,0.00059452,120]
[340144354,1728678662116,-638.04,0.00059452,120]
[340144355,1728678662127,-574.52,0.00059452,120]
[340144356,1728678662139,-709.73,0.00059452,120]
[340144357,1728678662151,-340.81885873,0.00059452,120]
[340144358,1728678662162,-296.5396958,0.00059452,120]
[340144359,1728678662172,-6494.28,0.00059452,120]
[340144360,1728678662183,-623.84,0.00059452,2]
[340144361,1728678662194,-601.28,0.00059452,120]
[340144362,1728678662204,-9360.29,0.00059452,18]
[340144363,1728678662215,-2015.61645162,0.000595,120]
[340144364,1728678662227,-153.13,0.000595,60]
[340144365,1728678662239,-153.13,0.000595,60]
[340144366,1728678662250,-153.13,0.000595,60]
[340144367,1728678662260,-153.13,0.000595,60]
[340144368,1728678662269,-153.13,0.000595,60]
[340144369,1728678662279,-153.13,0.000595,60]
[340144370,1728678662290,-153.13,0.000595,60]
[340144371,1728678662300,-1000.0,0.00059515,120]
[340144372,1728678662310,-1000.0,0.000596,30]
[340144373,1728678662321,-151.0,0.00059678,120]
[340144374,1728678662332,-1000.0,0.00059689,120]
[340144375,1728678662342,-933.99,0.00059726,120]
[340144376,1728678662354,-804.51,0.00059726,120]
[340144377,1728678662366,-500.0,0.00059726,120]
[340144378,1728678662376,-500.0,0.00059726,120]
[340144379,1728678662387,-500.0,0.00059726,7]
[340144380,1728678662399,-536.15,0.00059726,120]
[340144381,1728678662409,-994.59,0.00059726,120]
[340144382,1728678662418,-683.35,0.00059726,30]
[340144383,1728678662427,-546.26,0.00059726,120]
[340144384,1728678662440,-500.0,0.00059726,2]
[340144385,1728678662449,-250.0,0.00059726,120]
[340144386,1728678662459,-243.49752401,0.00059726,120]
[340144387,1728678662470,-500.0,0.00059726,120]
[340144388,1728678662479,-1202.52,0.00059726,120]
[340144389,1728678662490,-1411.19,0.00059726,120]
[340144390,1728678662503,-1442.14,0.00059726,120]
[340144391,1728678662514,-632.2,0.00059726,120]
[340144392,1728678662523,-561.03,0.00059726,120]
[340144393,1728678662534,-526.01,0.00059726,120]
[340144394,1728678662545,-500.0,0.00059726,120]
[340144395,1728678662555,-1351.2,0.00059726,120]
[340144396,1728678662564,-3425.5,0.00059726,120]
[340144397,1728678662574,-2791.64,0.00059726,120]
[340144398,1728678662584,-690.98,0.00059726,120]
[340144399,1728678662594,-521.14,0.00059726,120]
[340144400,1728678662604,-613.21,0.00059726,120]
[340144401,1728678662614,-424.05937113,0.00059726,120]
[340144402,1728678662624,-785.83,0.00059726,120]
[340144403,1728678662634,-621.34,0.00059726,120]
[340144404,1728678662643,-499.014004,0.00059726,120]
[340144405,1728678662653,-638.04,0.00059726,120]
[340144406,1728678662664,-574.52,0.00059726,120]
[340144407,1728678662674,-709.73,0.00059726,120]
[340144408,1728678662684,-6494.28,0.00059726,120]
[340144409,1728678662695,-623.84,0.00059726,2]
[340144410,1728678662705,-601.28,0.00059726,120]
[340144411,1728678662716,-9360.29,0.00059726,18]
[340144412,1728678662726,-241433.2989838,0.0005979,120]
[340144413,1728678662735,-68600.89012508,0.0005979,120]
[340144414,1728678662746,-8660.22405653,0.0005979,120]
[340144415,1728678662755,-260000.0,0.0005979,120]
[340144416,1728678662767,-1000.0,0.00059864,120]
[340144417,1728678662777,-1547.88725089,0.00059948,82]
[340144418,1728678662788,-210.50572198,0.00059999,120]
[340144419,1728678662799,-436.52852993,0.00059999,120]
[340144420,1728678662810,-466.46582207,0.00059999,31]
[340144421,1728678662822,-426.23043631,0.00059999,120]
[340144422,1728678662833,-500.0,0.00059999,120]
[340144423,1728678662844,-500.0,0.00059999,120]
[340144424,1728678662855,-500.0,0.00059999,120]
[340144425,1728678662867,-500.0,0.00059999,120]
[340144426,1728678662878,-500.0,0.00059999,120]
[340144427,1728678662889,-500.0,0.00059999,120]
[340144428,1728678662899,-189.67295143,0.00059999,120]
[340144429,1728678662910,-280.6586748,0.00059999,120]
[340144430,1728678662919,-266.18622476,0.00059999,120]
[340144431,1728678662929,-933.99,0.00059999,120]
[340144432,1728678662938,-804.51,0.00059999,120]
[340144433,1728678662947,-500.0,0.00059999,120]
[340144434,1728678662957,-500.0,0.00059999,120]
[340144435,1728678662966,-500.0,0.00059999,7]
[340144436,1728678662976,-536.15,0.00059999,120]
[340144437,1728678662986,-994.59,0.00059999,120]
[340144438,1728678662996,-683.35,0.00059999,30]
[340144439,1728678663007,-546.26,0.00059999,120]
[340144440,1728678663017,-500.0,0.00059999,2]
[340144441,1728678663028,-250.0,0.00059999,120]
[340144442,1728678663038,-302.84600955,0.00059999,120]
[340144443,1728678663049,-1202.52,0.00059999,120]
[340144444,1728678663059,-1411.19,0.00059999,120]
[340144445,1728678663069,-1442.14,0.00059999,120]
[340144446,1728678663080,-632.2,0.00059999,120]
[340144447,1728678663091,-561.03,0.00059999,120]
[340144448,1728678663100,-473.999674,0.00059999,120]
[340144449,1728678663110,-526.01,0.00059999,120]
[340144450,1728678663120,-1351.2,0.00059999,120]
[340144451,1728678663130,-3425.5,0.00059999,120]
[340144452,1728678663141,-2791.64,0.00059999,120]
[340144453,1728678663151,-690.98,0.00059999,120]
[340144454,1728678663160,-521.14,0.00059999,120]
[340144455,1728678663171,-613.21,0.00059999,120]
[340144456,1728678663181,-785.83,0.00059999,120]
[340144457,1728678663192,-621.34,0.00059999,120]
[340144458,1728678663202,-638.04,0.00059999,120]
[340144459,1728678663213,-574.52,0.00059999,120]
[340144460,1728678663223,-709.73,0.00059999,120]
[340144461,1728678663232,-6494.28,0.00059999,120]
[340144462,1728678663243,-623.84,0.00059999,2]
[340144463,1728678663253,-601.28,0.00059999,120]
[340144464,1728678663263,-9360.29,0.00059999,18]
[340144465,1728678663273,-2000.0,0.0006,60]
[340144466,1728678663283,-150.0,0.0006,120]
[340144467,1728678663293,-150.0,0.0006,120]
[340144468,1728678663304,-250.0,0.0006,120]
[340144469,1728678663316,-150.0,0.0006,90]
[340144470,1728678663326,-2000.0,0.0006,120]
[340144471,1728678663335,-8680.80346068,0.0006,120]
[340144472,1728678663345,-180.0,0.0006,120]
[340144473,1728678663354,-500000.0,0.0006,120]
[340144474,1728678663364,-17228.29306758,0.0006,120]
[340144475,1728678663373,-811.14,0.0006,120]
[340144476,1728678663383,-26320.97529,0.0006,120]
[340144477,1728678663394,-1000.0,0.00060039,120]
[340144478,1728678663404,-1000.0,0.00060214,120]
[340144479,1728678663415,-1742.41686285,0.00060233,2]
[340144480,1728678663426,-933.99,0.00060273,120]
[340144481,1728678663439,-804.51,0.00060273,120]
[340144482,1728678663449,-175.80683958,0.00060273,120]
[340144483,1728678663459,-467.7523047,0.00060273,120]
[340144484,1728678663469,-444.88433817,0.00060273,7]
[340144485,1728678663479,-536.15,0.00060273,120]
[340144486,1728678663564,-994.59,0.00060273,120]
[340144487,1728678663575,-683.35,0.00060273,30]
[340144488,1728678663587,-546.26,0.00060273,120]
[340144489,1728678663598,-385.12504412,0.00060273,2]
[340144490,1728678663608,-193.5897462,0.00060273,120]
[340144491,1728678663618,-1202.52,0.00060273,120]
[340144492,1728678663628,-1411.19,0.00060273,120]
[340144493,1728678663638,-1442.14,0.00060273,120]
[340144494,1728678663648,-632.2,0.00060273,120]
[340144495,1728678663658,-561.03,0.00060273,120]
[340144496,1728678663669,-526.01,0.00060273,120]
[340144497,1728678663679,-1351.2,0.00060273,120]
[340144498,1728678663689,-3425.5,0.00060273,120]
[340144499,1728678663708,-2791.64,0.00060273,120]
[340144500,1728678663718,-690.98,0.00060273,120]
[340144501,1728678663727,-521.14,0.00060273,120]
[340144502,1728678663738,-613.21,0.00060273,120]
[340144503,1728678663749,-785.83,0.00060273,120]
[340144504,1728678663759,-621.34,0.00060273,120]
[340144505,1728678663769,-638.04,0.00060273,120]
[340144506,1728678663779,-574.52,0.00060273,120]
[340144507,1728678663789,-709.73,0.00060273,120]
[340144508,1728678663799,-6250.0,0.00060273,120]
[340144509,1728678663809,-6494.28,0.00060273,120]
[340144510,1728678663819,-623.84,0.00060273,2]
[340144511,1728678663829,-601.28,0.00060273,120]
[340144512,1728678663838,-9360.29,0.00060273,18]
[340144513,1728678663849,-1000.0,0.00060388,120]
[340144514,1728678663858,-2015.61645162,0.000605,120]
[340144515,1728678663868,-933.99,0.00060547,120]
[340144516,1728678663878,-804.51,0.00060547,120]
[340144517,1728678663889,-536.15,0.00060547,120]
[340144518,1728678663899,-994.59,0.00060547,120]
[340144519,1728678663909,-683.35,0.00060547,30]
[340144520,1728678663920,-546.26,0.00060547,120]
[340144521,1728678663931,-1202.52,0.00060547,120]
[340144522,1728678663943,-1411.19,0.00060547,120]
[340144523,1728678663954,-1442.14,0.00060547,120]
[340144524,1728678663965,-632.2,0.00060547,120]
[340144525,1728678663976,-561.03,0.00060547,120]
[340144526,1728678663986,-526.01,0.00060547,120]
[340144527,1728678663997,-1351.2,0.00060547,120]
[340144528,1728678664008,-3425.5,0.00060547,120]
[340144529,1728678664019,-2791.64,0.00060547,120]
[340144530,1728678664029,-690.98,0.00060547,120]
[340144531,1728678664040,-521.14,0.00060547,120]
[340144532,1728678664049,-613.21,0.00060547,120]
[340144533,1728678664060,-785.83,0.00060547,120]
[340144534,1728678664069,-621.34,0.00060547,120]
[340144535,1728678664079,-638.04,0.00060547,120]
[340144536,1728678664089,-574.52,0.00060547,120]
[340144537,1728678664101,-709.73,0.00060547,120]
[340144538,1728678664112,-6494.28,0.00060547,120]
[340144539,1728678664123,-623.84,0.00060547,2]
[340144540,1728678664134,-601.28,0.00060547,120]
[340144541,1728678664145,-9360.29,0.00060547,18]
[340144542,1728678664155,-1000.0,0.00060563,120]
[340144543,1728678664164,-1219.0,0.00060699,120]
[340144544,1728678664175,-150.0,0.00060699,120]
[340144545,1728678664186,-1000.0,0.00060738,120]
[340144546,1728678664197,-933.99,0.00060821,120]
[340144547,1728678664207,-804.51,0.00060821,120]
[340144548,1728678664217,-536.15,0.00060821,120]
[340144549,1728678664228,-994.59,0.00060821,120]
[340144550,1728678664238,-683.35,0.00060821,30]
[340144551,1728678664249,-546.26,0.00060821,120]
[340144552,1728678664260,-1202.52,0.00060821,120]
[340144553,1728678664270,-1411.19,0.00060821,120]
[340144554,1728678664280,-1442.14,0.00060821,120]
[340144555,1728678664290,-632.2,0.00060821,120]
[340144556,1728678664300,-561.03,0.00060821,120]
[340144557,1728678664310,-526.01,0.00060821,120]
[340144558,1728678664320,-1351.2,0.00060821,120]
[340144559,1728678664330,-3425.5,0.00060821,120]
[340144560,1728678664341,-2791.64,0.00060821,120]
[340144561,1728678664351,-690.98,0.00060821,120]
[340144562,1728678664361,-521.14,0.00060821,120]
[340144563,1728678664371,-613.21,0.00060821,120]
[340144564,1728678664381,-785.83,0.00060821,120]
[340144565,1728678664392,-621.34,0.00060821,120]
[340144566,1728678664402,-638.04,0.00060821,120]
[340144567,1728678664413,-574.52,0.00060821,120]
[340144568,1728678664425,-709.73,0.00060821,120]
[340144569,1728678664439,-6494.28,0.00060821,120]
[340144570,1728678664449,-623.84,0.00060821,2]
[340144571,1728678664460,-601.28,0.00060821,120]
[340144572,1728678664471,-9360.29,0.00060821,18]
[340144573,1728678664481,-1000.0,0.00060913,120]
[340144574,1728678664491,-150.0,0.00061,120]
[340144575,1728678664502,-1000.0,0.00061,120]
[340144576,1728678664513,-5079.41,0.00061,30]
[340144577,1728678664524,-1000.0,0.00061087,120]
[340144578,1728678664534,-934.11427678,0.00061095,120]
[340144579,1728678664545,-804.676874,0.00061095,120]
[340144580,1728678664555,-536.29282642,0.00061095,120]
[340144581,1728678664565,-994.6514881,0.00061095,120]
[340144582,1728678664575,-683.40484974,0.00061095,30]
[340144583,1728678664586,-546.44054725,0.00061095,120]
[340144584,1728678664596,-1202.72124168,0.00061095,120]
[340144585,1728678664607,-1411.20384348,0.00061095,120]
[340144586,1728678664617,-1442.25226309,0.00061095,120]
[340144587,1728678664627,-632.27424534,0.00061095,120]
[340144588,1728678664637,-561.15,0.00061095,120]
[340144589,1728678664649,-526.16755114,0.00061095,120]
[340144590,1728678664658,-1351.26589046,0.00061095,120]
[340144591,1728678664668,-3425.54013401,0.00061095,120]
[340144592,1728678664679,-2791.73178919,0.00061095,120]
[340144593,1728678664692,-691.14245859,0.00061095,120]
[340144594,1728678664702,-521.14413814,0.00061095,120]
[340144595,1728678664713,-613.3336534,0.00061095,120]
[340144596,1728678664724,-785.86528966,0.00061095,120]
[340144597,1728678664736,-621.37866737,0.00061095,120]
[340144598,1728678664747,-638.05714878,0.00061095,120]
[340144599,1728678664759,-574.69223187,0.00061095,120]
[340144600,1728678664771,-709.94408871,0.00061095,120]
[340144601,1728678664782,-6494.41470601,0.00061095,120]
[340144602,1728678664793,-623.94179522,0.00061095,2]
[340144603,1728678664804,-601.45074377,0.00061095,120]
[340144604,1728678664814,-9360.2972068,0.00061095,18]
[340144605,1728678664825,-1000.0,0.00061262,120]
[340144606,1728678664836,-150.0,0.00061405,120]
[340144607,1728678664848,-1000.0,0.00061437,120]
[340144608,1728678664860,-2015.61645162,0.000615,120]
[340144609,1728678664871,-1000.0,0.00061612,120]
[340144610,1728678664883,-7500.0,0.00061643,120]
[340144611,1728678664893,-215.4794409,0.00061657,14]
[340144612,1728678664903,-1000.0,0.00061786,120]
[340144613,1728678664914,-1066.43,0.000618,120]
[340144614,1728678664924,-1742.41686285,0.00061956,2]
[340144615,1728678664934,-1000.0,0.00061961,120]
[340144616,1728678664946,-2000.0,0.00062,62]
[340144617,1728678664955,-150.0,0.00062,120]
[340144618,1728678664965,-200.0,0.00062,120]
[340144619,1728678664976,-150.0,0.00062,120]
[340144620,1728678664986,-3000.0,0.00062073,15]
[340144621,1728678664997,-1000.0,0.00062136,120]
[340144622,1728678665007,-1000.0,0.00062311,120]
[340144623,1728678665018,-1000.0,0.00062485,120]
[340144624,1728678665028,-1000.0,0.000625,120]
[340144625,1728678665039,-2015.61645162,0.000625,120]
[340144626,1728678665049,-839.23,0.000626,7]
[340144627,1728678665059,-1000.0,0.0006266,120]
[340144628,1728678665068,-1000.0,0.00062835,120]
[340144629,1728678665078,-150.0,0.00063,120]
[340144630,1728678665087,-150.0,0.00063,120]
[340144631,1728678665098,-1000.0,0.0006301,120]
[340144632,1728678665107,-888.0,0.00063013,120]
[340144633,1728678665117,-888.0,0.00063013,120]
[340144634,1728678665128,-888.0,0.00063013,120]
[340144635,1728678665198,-888.0,0.00063013,120]
[340144636,1728678665215,-888.0,0.00063013,120]
[340144637,1728678665225,-888.0,0.00063013,120]
[340144638,1728678665235,-888.0,0.00063013,120]
[340144639,1728678665245,-888.0,0.00063013,120]
[340144640,1728678665256,-888.0,0.00063013,120]
[340144641,1728678665266,-888.0,0.00063013,120]
[340144642,1728678665276,-888.0,0.00063013,120]
[340144643,1728678665287,-888.0,0.00063013,120]
[340144644,1728678665297,-432.00018903,0.00063013,120]
[340144645,1728678665307,-8750.0,0.00063013,120]
[340144646,1728678665317,-547.211077,0.00063013,120]
[340144647,1728678665327,-517.39343721,0.00063013,120]
[340144648,1728678665337,-1000.0,0.00063184,120]
[340144649,1728678665347,-1000.0,0.00063359,120]
[340144650,1728678665357,-2015.61645162,0.000635,120]
[340144651,1728678665366,-479.00392644,0.0006353,120]
[340144652,1728678665377,-1000.0,0.00063534,120]
[340144653,1728678665386,-1742.41686285,0.00063678,2]
[340144654,1728678665396,-691.291,0.00063699,120]
[340144655,1728678665406,-150.0,0.00063699,120]
[340144656,1728678665416,-1000.0,0.00063709,120]
[340144657,1728678665427,-1000.0,0.00063883,120]
[340144658,1728678665439,-200.0,0.00064,120]
[340144659,1728678665449,-150.0,0.00064,120]
[340144660,1728678665458,-1000.0,0.00064,120]
[340144661,1728678665467,-29717.2,0.00064,120]
[340144662,1728678665477,-1000.0,0.00064058,120]
[340144663,1728678665487,-400.0,0.00064095,2]
[340144664,1728678665497,-250000.0,0.000642,120]
[340144665,1728678665507,-1000.0,0.00064233,120]
[340144666,1728678665517,-168.0,0.0006424,120]
[340144667,1728678665526,-10000.0,0.00064383,120]
[340144668,1728678665536,-1000.0,0.00064408,120]
[340144669,1728678665545,-280454.0851,0.0006444,120]
[340144670,1728678665554,-2015.61645162,0.000645,120]
[340144671,1728678665564,-150.0,0.00064527,14]
[340144672,1728678665573,-1000.0,0.00064583,120]
[340144673,1728678665582,-161.0,0.00064599,120]
[340144674,1728678665592,-1000.0,0.00064757,120]
[340144675,1728678665601,-1000.0,0.00064932,120]
[340144676,1728678665610,-2000.0,0.00065,65]
[340144677,1728678665620,-50070.04788758,0.00065,120]
[340144678,1728678665629,-1000.0,0.00065,120]
[340144679,1728678665639,-150.0,0.00065,120]
[340144680,1728678665648,-49787.6940879,0.00065,120]
[340144681,1728678665656,-1000.0,0.00065,120]
[340144682,1728678665666,-500000.0,0.00065,120]
[340144683,1728678665674,-1625.39,0.00065,30]
[340144684,1728678665684,-1962.42477793,0.00065042,15]
[340144685,1728678665695,-1000.0,0.00065107,120]
[340144686,1728678665705,-1000.0,0.00065282,120]
[340144687,1728678665714,-1742.41686285,0.000654,2]
[340144688,1728678665723,-1000.0,0.00065456,120]
[340144689,1728678665733,-10000.0,0.000655,120]
[340144690,1728678665743,-2015.61645162,0.000655,120]
[340144691,1728678665753,-1000.0,0.00065631,120]
[340144692,1728678665762,-10797.0,0.0006575,120]
[340144693,1728678665771,-500.0,0.00065753,120]
[340144694,1728678665780,-3046.38057207,0.00065753,120]
[340144695,1728678665790,-1000.0,0.00065806,120]
[340144696,1728678665800,-1000.0,0.00065981,120]
[340144697,1728678665809,-1500.0,0.00066,120]
[340144698,1728678665818,-150.0,0.00066,120]
[340144699,1728678665827,-300000.0,0.00066,120]
[340144700,1728678665837,-5088.9967837,0.00066,120]
[340144701,1728678665846,-500.0,0.00066019,120]
[340144702,1728678665856,-5000.0,0.0006612,30]
[340144703,1728678665865,-1000.0,0.00066155,120]
[340144704,1728678665875,-1000.0,0.0006633,120]
[340144705,1728678665885,-10000.0,0.000665,120]
[340144706,1728678665894,-2015.61645162,0.000665,120]
[340144707,1728678665903,-1000.0,0.00066505,120]
[340144708,1728678665913,-105015.05858158,0.000666,120]
[340144709,1728678665922,-1000.0,0.0006668,120]
[340144710,1728678665932,-150.0,0.00066699,120]
[340144711,1728678665942,-1000.0,0.00066854,120]
[340144712,1728678665952,-256855.06465049,0.000669,120]
[340144713,1728678665962,-1362.56894775,0.00066948,92]
[340144714,1728678665972,-1000.0,0.00067,120]
[340144715,1728678665981,-1007.98761647,0.00067,120]
[340144716,1728678665990,-1000.1286738,0.00067,120]
[340144717,1728678665999,-496.974,0.00067,120]
[340144718,1728678666009,-10000.0,0.00067,120]
[340144719,1728678666020,-1000.0,0.00067029,120]
[340144720,1728678666030,-1000.0,0.00067204,120]
[340144721,1728678666041,-2484.69557268,0.00067289,120]
[340144722,1728678666051,-21742.66205515,0.0006729,120]
[340144723,1728678666062,-1000.0,0.00067379,120]
[340144724,1728678666074,-150.0,0.00067397,14]
[340144725,1728678666086,-3993.35232484,0.000674,4]
[340144726,1728678666098,-529.93864256,0.000675,120]
[340144727,1728678666109,-300.0,0.000675,65]
[340144728,1728678666121,-2015.61645162,0.000675,120]
[340144729,1728678666134,-1000.0,0.00067553,120]
[340144730,1728678666145,-1000.0,0.00067728,120]
[340144731,1728678666156,-618.76410727,0.00067776,120]
[340144732,1728678666166,-1000.0,0.00067903,120]
[340144733,1728678666179,-1006.60204959,0.00068,120]
[340144734,1728678666191,-153.74,0.00068,30]
[340144735,1728678666202,-186.71,0.00068,30]
[340144736,1728678666211,-169.19602263,0.00068,120]
[340144737,1728678666223,-1000.0,0.00068078,120]
[340144738,1728678666234,-1000.0,0.00068252,120]
[340144739,1728678666243,-1000.0,0.00068427,120]
[340144740,1728678666252,-500.0,0.00068493,120]
[340144741,1728678666262,-529.21862516,0.00068493,120]
[340144742,1728678666271,-300.0,0.000685,67]
[340144743,1728678666280,-2015.61545162,0.000685,120]
[340144744,1728678666290,-1000.0,0.00068602,120]
[340144745,1728678666299,-1000.0,0.00068777,120]
[340144746,1728678666308,-772.69896657,0.000688,120]
[340144747,1728678666318,-1000.0,0.00068951,120]
[340144748,1728678666327,-400.0,0.00068955,2]
[340144749,1728678666337,-1000.0,0.00068999,120]
[340144750,1728678666346,-1455.0776408,0.00069,120]
[340144751,1728678666355,-3000.0,0.00069,120]
[340144752,1728678666364,-11661.97393158,0.00069,120]
[340144753,1728678666373,-10000.0,0.00069,120]
[340144754,1728678666382,-10000.0,0.00069,120]
[340144755,1728678666390,-10000.0,0.00069,120]
[340144756,1728678666399,-10000.0,0.00069,120]
[340144757,1728678666408,-10000.0,0.00069,120]
[340144758,1728678666417,-5179.85697704,0.00069,120]
[340144759,1728678666426,-1000.0,0.00069,120]
[340144760,1728678666438,-3000.0,0.0006901,120]
[340144761,1728678666449,-3000.0,0.0006902,120]
[340144762,1728678666458,-3000.0,0.0006903,120]
[340144763,1728678666467,-5617.77584,0.0006904,120]
[340144764,1728678666477,-1000.0,0.00069126,120]
[340144765,1728678666488,-1000.0,0.00069301,120]
[340144766,1728678666498,-150000.0,0.000694,120]
[340144767,1728678666511,-167574.24838658,0.000694,120]
[340144768,1728678666656,-141.50616953,0.000694,120]
[340144769,1728678666940,-41.6208703,0.00051699,120]
[340144770,1728678666956,-569.7971297,0.00051699,120]
[340144771,1728678666967,-395.995206,0.00053,120]
[340144772,1728678666978,-395.995206,0.00054,120]
[340144773,1728678666987,-526.0,0.00054699,120]
[340144774,1728678666997,-395.995206,0.00054794,120]
[340144775,1728678667007,-395.995206,0.0005498,120]
[340144776,1728678667016,-395.995206,0.00055,120]
[340144777,1728678667028,-500.0,0.00055068,120]
[340144778,1728678667040,-500.0,0.00055342,120]